Cogmind - Beta 14 @@@ ROGUE MODE // 2024.08.08 @ 15:39:55 Player: ktur Result: Destroyed by XD-BLG(R) with Subdweller Machine Gun Performance ------------- Evolutions (0) 0 Regions Visited (2) 400 Robots Destroyed (18) 90 Value Destroyed (338) 338 Prototype IDs (0) 0 Alien Tech Used (0) 0 Bonus (0) 0 TOTAL SCORE: 828 Bonus ------- None Cogmind --------- Core Integrity 0/250 Matter 294/300 Energy 66/100 System Corruption 0% Temperature Cool (0) Movement Core (100) Ox1 Location -10/Subcaves Parts ------- > --- POWER (1) -------- (None) > --- PROPULSION (2) --- (None) > --- UTILITY (2) ------ (None) > --- WEAPON (2) ------- Subdweller Laser > --- INVENTORY (5) ---- Scrap Shield Makeshift System Shield Subdweller Shrapnel Launcher Multitool Peak State ------------ > --- POWER ------------ Subdweller Power Source > --- PROPULSION ------- Wheel Subdweller Monowheel > --- UTILITY ---------- Medium Storage Unit Subdweller Optics > --- WEAPON ----------- Medium Laser Barrage Gun > --- INVENTORY -------- Large Matter Pod Improved Terrain Scanner Scrap Shield Makeshift System Shield Subdweller Laser Subdweller Machine Gun Subdweller Shrapnel Launcher Multitool [Rating: 14] Favorites ----------- Power Light Ion Engine Engine Light Ion Engine Propulsion Light Treads Treads Light Treads Wheel Wheel Utility Medium Storage Unit Device Seismic Detector Storage Medium Storage Unit Protection Scrap Shield Weapon Medium Laser Energy Gun Medium Laser Ballistic Gun Light Assault Rifle Launcher Subdweller Shrapnel Launcher Special Weapon Mining Laser Build | -11 -10 -10 ------- Run | Yrd Mat Sub Slots Evolved . | . . . Power . | . . . Propulsion . | . . . Utility . | . . . Weapon . | . . . Parts Attached 24 | 7 1 16 Power 3 | 1 . 2 Engine 3 | 1 . 2 Core . | . . . Reactor . | . . . Propulsion 4 | 2 . 2 Treads 2 | 2 . . Leg . | . . . Wheel 2 | . . 2 Hover . | . . . Flight . | . . . Utility 8 | 2 1 5 Device 4 | 1 . 3 Storage 2 | 1 1 . Processor . | . . . Hackware . | . . . Protection 2 | . . 2 Artifact . | . . . Weapon 9 | 2 . 7 Energy Gun 2 | 1 . 1 Energy Cannon . | . . . Ballistic Gun 5 | 1 . 4 Ballistic Cannon . | . . . Launcher 1 | . . 1 Special Weapon 1 | . . 1 Impact Weapon . | . . . Slashing Weapon . | . . . Piercing Weapon . | . . . Special Melee Weapon . | . . . Unidentified Prototypes . | . . . Parts Lost 9 | . . 9 Power 2 | . . 2 Propulsion 4 | . . 4 Utility 1 | . . 1 Weapon 2 | . . 2 Highest Loss Streak 4 | . . 4 To Critical Strikes . | . . . Average Slot Usage (%) 93 | . 100 90 Engine 13 | . 14 13 Treads 14 | . 28 6 Wheel 13 | . . 21 Device 11 | . 14 9 Storage 9 | . 14 6 Protection 2 | . . 3 Energy Gun 14 | . 14 14 Ballistic Gun 13 | . 14 13 Peak Build Rating 14 | 7 8 14 Average Rating 10 | 4 7 11 On Entrance 5 | . 7 8 Naked Turns . | . . . Heaviest Build 35 | 12 17 35 Greatest Support 40 | 40 40 40 Greatest Overweight (x) 3 | . . 3 Average Overweight (x) . | . . 1 Largest Inventory Capacity 10 | 8 10 10 Average Capacity 8 | 7 9 7 Most Carried 10 | 6 8 10 Average Carried 6 | 3 7 6 Final Capacity 10 | 8 10 5 Final Carried 8 | 6 8 5 Class Distribution -------------------- 82% | Mutant 17% | Subdweller-Mutant Dominant Class ---------------- Mutant | -10/Materials Mutant | -10/Subcaves Resources | -11 -10 -10 ----------- Run | Yrd Mat Sub Matter Collected 636 | 274 7 355 Remotely . | . . . Salvage Created 431 | 44 71 316 Parts 34 | 8 7 19 Haulers Intercepted . | . . . Recyclers Shooed 1 | 1 . . Parts Field Recycled . | . . . Retrieved Matter . | . . . Parts Self-Destructed 15 | . . 15 Prevented . | . . . Kills | -11 -10 -10 ------- Run | Yrd Mat Sub Combat Hostiles Destroyed 15 | . 4 11 Guns 15 | . 4 11 Classes Destroyed 5 | 1 2 2 Tunneler 2 | 2 . . Turret 1 | . . 1 Swarmer 10 | . 3 7 Grunt 1 | . 1 . Subdweller 4 | . . 4 Best Kill Streak 4 | 2 3 4 Combat Bots Only 4 | . 3 4 Max Kills in Single Turn 1 | 1 1 1 Gunslinging . | . . . Exploded . | . . . Melee . | . . . Uniques/NPCs Destroyed . | . . . Combat | -11 -10 -10 -------- Run | Yrd Mat Sub Hostile Shots Fired 106 | . 24 82 Missed 31 | . 4 27 Damage Taken 1154 | . 182 972 Core 261 | . 32 229 Absorbed by Shields . | . . . Core Remaining (%) 100 | 100 . . Volleys Fired 58 | 4 15 39 Largest 2 | 2 2 2 Hottest 100 | 70 70 100 Shots Fired 99 | 8 30 61 Gun 96 | 8 30 58 Cannon . | . . . Launcher 1 | . . 1 Special 2 | . . 2 Kinetic 52 | 4 15 33 Thermal 47 | 4 15 28 Explosive . | . . . Electromagnetic . | . . . Robot Hit Streak 17 | 4 8 17 Robot Miss Streak 2 | 1 2 2 Penetration Max . | . . . Secondary Targets 4 | . 1 3 Max Gunslinging Chain 1 | . 1 1 Shots Hit Robots 75 | 5 23 47 Core Hits 29 | 3 8 18 Critical Kills . | . . . Critical Parts Destroyed . | . . . Critical Strikes 2 | . 1 1 Burn 1 | . 1 . Destroy 1 | . . 1 Melee Attacks . | . . . Impact . | . . . Slashing . | . . . Piercing . | . . . Sneak Attacks . | . . . Combat Hostiles . | . . . Follow-up Attacks . | . . . Damage Inflicted 1071 | 60 240 771 Guns 1008 | 58 238 712 Cannons . | . . . Explosions 59 | . . 59 Melee . | . . . Ramming 4 | 2 2 . Kinetic 463 | 8 93 362 Thermal 604 | 50 145 409 Explosive . | . . . Electromagnetic . | . . . Impact . | . . . Slashing . | . . . Piercing . | . . . Highest Corruption . | . . . Average Corruption . | . . . Corruption Purged . | . . . Corruption Blocked . | . . . Overload Shots . | . . . Overflow Damage 24 | . . 24 Projectiles . | . . . Explosions 24 | . . 24 Melee . | . . . Knockbacks . | . . . Impact . | . . . Kinetic . | . . . Secondary . | . . . Self-Inflicted Damage . | . . . Shots . | . . . Rammed 3 | 1 2 . Targets Rammed 3 | 1 2 . Kicked . | . . . Crushed . | . . . Highest Temperature 294 | 60 100 294 Average Temperature 56 | 25 46 113 Received Heat Transfer 441 | . 6 435 Siege Activations . | . . . Robots Corrupted . | . . . Combat Hostiles . | . . . Parts Fried . | . . . Impact Corruptions . | . . . Robots Melted . | . . . Combat Hostiles . | . . . Parts Melted 3 | 1 1 1 Heat Transferred 1373 | 148 481 744 Parts Sabotaged . | . . . Parts Stolen . | . . . Parts Stripped . | . . . Power Chain Reactions . | . . . Alert | -11 -10 -10 ------- Run | Yrd Mat Sub Peak Influence 106 | 10 106 . Initial 6 | . 6 . Average 20 | 3 22 . Maximum Alert Level . | . . . Low Security (%) 100 | 100 100 . Level 1 . | . . . Level 2 . | . . . Level 3 . | . . . Level 4 . | . . . Level 5 . | . . . High Security . | . . . Max Security . | . . . Squads Dispatched 1 | . 1 . Investigation 1 | . 1 . Extermination . | . . . Reinforcement . | . . . Assault . | . . . Garrison . | . . . Intercept . | . . . Searches Triggered . | . . . Construction Impeded . | . . . Haulers Reinforced . | . . . Active Scanning Responses . | . . . Cargo Convoy Interrupts . | . . . Stealth | -11 -10 -10 --------- Run | Yrd Mat Sub Distress Signals . | . . . Communications Jammed . | . . . Distress Signals . | . . . Times Spotted 19 | . 4 15 Peak Tracking Total 6 | . 2 6 Tactical Retreats 1 | . . 1 Traps | -11 -10 -10 ------- Run | Yrd Mat Sub Traps Triggered 1 | . 1 . Indirectly . | . . . Trap Hack Attempts . | . . . Triggered . | . . . Disarmed . | . . . Reprogrammed . | . . . Reused . | . . . Traps Extracted . | . . . Installed . | . . . Triggered . | . . . Machines | -11 -10 -10 ---------- Run | Yrd Mat Sub Machines Disabled 4 | . . 4 Max in Single Turn 4 | . . 4 Machines Repaired . | . . . Machines Dismantled . | . . . Machines Sabotaged . | . . . Overloaded Fab Kills . | . . . Hacking | -11 -10 -10 --------- Run | Yrd Mat Sub Machines Accessed 4 | . 4 . Terminals 4 | . 4 . Fabricators . | . . . Repair Stations . | . . . Recycling Units . | . . . Scanalyzers . | . . . Garrison Access . | . . . Total Hacks 8 | . 8 . Successful 1 | . 1 . Failed 6 | . 6 . Catastrophic 1 | . 1 . Database Lockouts 1 | . 1 . Manual 7 | . 7 . Terminals 8 | . 8 . Fabricators . | . . . Repair Stations . | . . . Recycling Units . | . . . Scanalyzers . | . . . Garrison Access . | . . . Terminal Hacks 1 | . 1 . Robot Analysis 1 | . 1 . Fabricator Hacks . | . . . Repair Station Hacks . | . . . Recycling Unit Hacks . | . . . Scanalyzer . | . . . Garrison Access Hacks . | . . . Unauthorized Hacks . | . . . Terminals . | . . . Fabricators . | . . . Repair Stations . | . . . Recycling Units . | . . . Scanalyzers . | . . . Garrison Access . | . . . Data Cores Recovered . | . . . Used . | . . . Hacking Detections 4 | . 4 . Full Trace Events 1 | . 1 . Feedback Events . | . . . Feedback Blocked . | . . . Robot Schematics Acquired . | . . . Robots Built . | . . . Authchips . | . . . Time . | . . . Total Robot Build Rating . | . . . Part Schematics Acquired . | . . . Parts Built . | . . . Authchips . | . . . Time . | . . . Total Part Build Rating . | . . . Parts Repaired . | . . . Time . | . . . Parts Recycled . | . . . Recycled Matter . | . . . Retrieved Matter . | . . . Retrieved Components . | . . . Parts Scanalyzed . | . . . Part Schematics Acquired . | . . . Parts Damaged . | . . . Bothacking | -11 -10 -10 ------------ Run | Yrd Mat Sub Used RIF Installer . | . . . Robots Hacked . | . . . Non-combat . | . . . Combat . | . . . Robot Hacks Applied . | . . . Relay Couplers Released . | . . . Fabnet Peak Effective % . | . . . Robots Rewired . | . . . Allies Hacked . | . . . Hacks Repelled . | . . . Allies | -11 -10 -10 -------- Run | Yrd Mat Sub Total Allies . | . . . Largest Group . | . . . Highest-Rated Group . | . . . Highest-Rated Ally . | . . . Total Orders . | . . . Ally Attacks . | . . . Total Damage . | . . . Kills . | . . . Allies Corrupted . | . . . Allies Melted . | . . . Intel | -11 -10 -10 ------- Run | Yrd Mat Sub Robot Analysis Total 1 | . 1 . Derelict Logs Recovered 1 | . . 1 Drone Launches . | . . . Drone Recoveries . | . . . Exploration | -11 -10 -10 ------------- Run | Yrd Mat Sub Turns Passed 2578 | 104 869 1605 Spaces Moved 1224 | 48 222 954 Core 2 | 2 . . Treads 418 | 46 222 150 Legs . | . . . Wheels 804 | . . 804 Hover . | . . . Flight . | . . . Fastest Speed 50 | 50 160 95 Average Speed 127 | 155 160 118 Slowest Speed 160 | 160 160 160 Overloaded Moves . | . . . Propulsion Burnouts . | . . . Robots Hopped . | . . . Cave-ins Triggered . | . . . Exploration Rate (%) 25 | 5 37 35 Regions Visited 2 Branch Regions 1 Pre-discovered Areas 1 | . . 1 Known Exits Taken . | . . . Unknown Exits Taken 2 | 1 1 . Scrap Searched 8 | . . 8 Spaces Dug . | . . . Terrain Destroyed 13 | . . 13 Melee . | . . . Projectile . | . . . AOE 13 | . . 13 Terrain Rammed . | . . . Walls Destroyed . | . . . Machines Disabled . | . . . Actions | -11 -10 -10 --------- Run | Yrd Mat Sub Total 2154 | 68 708 1378 Wait 798 | . 466 332 Move 1223 | 48 221 954 Hop . | . . . Pick Up 24 | 9 2 13 Fast Attach 8 | 4 . 4 Attach 12 | 3 . 9 Detach 2 | . . 2 Swap 4 | . 1 3 Drop 19 | . 1 18 Fire 58 | 4 15 39 Melee . | . . . Ram . | . . . Kick . | . . . Crush 2 | . 2 . Escape Stasis . | . . . Rewire . | . . . Trap . | . . . Miscellaneous 4 | . . 4 Route ------- -11/Scrapyard -10/Materials (discovered 2 exits: [*Mat] / [*Sub]) -10/Subcaves (discovered 2 exits: [*Mat] / [*Rec]) History --------- Turn | Location | Event 7 | -11/Scrapyard | Discovered new exit (range 16) 105 | -11/Scrapyard | Entered Materials 315 | -10/Materials | Build established: Mutant 516 | -10/Materials | Central database locked down 522 | -10/Materials | Discovered new exit (range 16) 969 | -10/Materials | Discovered new exit (range 4) 974 | -10/Materials | Entered Subcaves 1029 | -10/Subcaves | Learned location of Mines (-8) 1055 | -10/Subcaves | A swath of the cavern ceiling suddenly collapsed 1215 | -10/Subcaves | Disturbed a concealed Subdweller 1217 | -10/Subcaves | Disturbed a concealed Subdweller 1217 | -10/Subcaves | Disturbed a concealed Subdweller 1271 | -10/Subcaves | Lost 4 parts (1p1n1u1w) 1405 | -10/Subcaves | Core integrity fell below 50% 1418 | -10/Subcaves | Discovered new exit (range 21) 2450 | -10/Subcaves | Discovered new exit (range 16) 2511 | -10/Subcaves | Shifting Twisted Machinery released Flamer 2519 | -10/Subcaves | Build established: Subdweller-Mutant 2533 | -10/Subcaves | A Subdweller sparked back to life 2533 | -10/Subcaves | A Subdweller sparked back to life 2573 | -10/Subcaves | Core integrity fell below 20% 2579 | -10/Subcaves | Destroyed by XD-BLG(R) with Subdweller Machine Gun Last Messages --------------- 02447_ Autobeam Turret destroyed. 02447_ Machine disabled. 02449_ Acquired 17 matter. 02450_ Acquired 13 matter. 02450_ EXIT=FOUND 02456_ Scrap Shield Fragment affixed to Scrap Shield (+15). 02465_ Acquired Sub. Monowheel. Flamer falls loose from the Twisted Machinery. 02533_ R3-RMH(R) creaks and sparks as it begins to move. 02533_ XD-BLG(R) creaks and sparks as it begins to move. 02535_ R3-RMH(R) destroyed. 02552_ Critical hit (Meltdown: +300). 02556_ Dropped Sub. Monowheel. 02558_ Wheel destroyed. 02568_ Sub. Monowheel destroyed. 02570_ Sub. Power Source destroyed. 02571_ 8F-F45(R) suffers critical hit (Destroy). 02571_ Destroyed Scrap Shield. 02574_ 8F-F45(R) destroyed. 02575_ Sub. Machine Gun destroyed. Map ----- +----------------------------------------------------+ | #????##?# [ *& "# ##???????????? | | # ####???#??# [ ! ## ##??????????? | | # ####???????## = !## #??????????? | | ##??#???????## #??????????? | | ###????##??### # #"# #??????????? | | ##????????????######### #??????????? | | ###?##?##??##???????#???## ##??????????? | | ??#??????#?##???#????????# ##???????????? | | ????#??#???????#?????????# ###????????????? | | ???????????#??????#??????# ##??#???????????? | | ?#?#??????#?###??????????# ##????#??????????? | | ??????????#?#?#?#??#???#?# ###??????????????? | | #?#????#????#????????????# #?#???#????????? | | ???#???#########?#???????# #????#??#??????? | | ?????#?#" ####????### #?#????????????? | | ???#??### "###?##?## ##???#?????????? | | ???????#" % ""####### ##????#???????? | | ???????#" % ####?????????? | | ???????#< #### #?????????? | | ??#????## !% %&##?##" #?????????? | | ???##??#" ""##### % ##?## ##?????????? | | ???????#" "##???# #??## #####?????????? | | ???????#" "#????### ##???####?#???????????? | | ???????##########??????# ##?????????????????????? | | ?????????????????#????## #??????????????????????? | | ???????????????????????##@#####??##??????????????? | | ???????????????????#??####R## ##" #""????????????? | | ?????????????????????## ##& """""????????????? | | ?????????????????##??# #"""?????????????? | | ????????????????## #?# "= ##????????????????? | | ????????????????# ## ## ""##?????????????????? | | ??????????????### ###""#??????????????????? | | ?????????????## * ## """"?????????????????? | | ?????? =%! """"?????????????????? | | ????????### # && """"?????????????????? | | ?????????????## # #???????????????? | | ??????????????##### "# #???????????????? | | ??????????????????" ### ##???????????????? | | ??????????????????#"" #?#######????????????????? | | ??????????????????# #????????????????????????? | | ??????????????????#"#####????????????????????????? | | ?????????????????????????????????????????????????? | | ?????????????????????????????????????????????????? | | ?????????????????????????????????????????????????? | | ?????????????????????????????????????????????????? | | ?????????????????????????????????????????????????? | | ?????????????????????????????????????????????????? | | ?????????????????????????????????????????????????? | | ?????????????????????????????????????????????????? | | ?????????????????????????????????????????????????? | +----------------------------------------------------+ Best States ------------- Heat Dissipation 25 Energy Generation 10 Energy Capacity 200 Matter Stores 300 Matter Capacity 300 Sight Range 21 Terrain Scan Range 16 Terrain Scan Density 10 Armor Coverage 800 Evasion (%) 41 Recoil Reduction 2 Item Schematics ----------------- None Robot Schematics ------------------ None Fabricated ------------ Nothing Alien Tech Used ----------------- None Achievements -------------- None Challenges ------------ None Game ------ Seed VoltaicServoArray Manual? 0 Play Time 00:10:09 Cumulative 771.1 hours Start 2024.08.08 @ 15:30:00 End 2024.08.08 @ 15:39:55 Sessions 1 Manual Loads 0 Difficulty Rogue Special Mode None Game No. 746 Rogue 746 Adventurer 0 Explorer 0 Win Type - Total 39 Types 14/4/11/2/0/0/5/2/1 Lore% 77 Gallery% 90 Achievement% 84 Wizard Run 0 Options --------- Layout 0 ASCII 0 Keyboard 0 Movement Numpad Keybinds 0 Fullscreen 1 Font 18/Smallcaps Map View 76x50 Zoom Use 0% Tactical HUD 1 Map Filters NONE Filters NONE Steam 1 RUN: 32474f8f-08bf-43dd-8542-dd593261be6a